bitfinex/quotes_BTCUSD_20251208
["timestamp","ask_amount","ask_price","bid_price","bid_amount"]
[1765230605009,0.07122,91212.0,91211.0,0.327]
[1765230605418,0.07122,91212.0,91211.0,0.54627179]
[1765230605608,0.03758,91212.0,91211.0,0.54627179]
[1765230606058,0.03758,91212.0,91211.0,0.327]
[1765230606749,0.03758,91212.0,91211.0,0.54627179]
[1765230606956,0.01607,91218.0,91215.0,0.0109631]
[1765230607176,0.01607,91218.0,91216.0,0.323]
[1765230607380,0.04971,91218.0,91216.0,0.323]
[1765230607612,0.04971,91218.0,91217.0,0.54225737]
[1765230607891,0.01607,91218.0,91217.0,0.323]
[1765230608098,0.25683497,91218.0,91217.0,0.323]
[1765230608474,0.29047497,91218.0,91217.0,0.323]
[1765230608879,0.29047497,91218.0,91217.0,0.324]
[1765230609272,0.29047497,91218.0,91217.0,0.325]
[1765230611300,0.07122,91218.0,91217.0,0.325]
[1765230612969,0.29047497,91218.0,91217.0,0.325]
[1765230615397,0.07122,91218.0,91217.0,0.325]
[1765230621989,0.03758,91218.0,91217.0,0.325]
[1765230622422,0.07274,91218.0,91217.0,0.325]
[1765230623032,0.01607,91224.0,91217.0,0.325]
[1765230623033,0.27842497,91260.0,91217.0,0.44163287]
[1765230623230,0.00119999,91280.0,91265.0,0.0109571]
[1765230623231,0.02035498,91279.0,91265.0,0.0109571]
[1765230623470,0.05916255,91288.0,91260.0,2.32599998]
[1765230623471,0.01095158,91311.0,91295.0,0.0109535]
[1765230623674,0.0352781,91309.0,91303.0,0.03905304]
[1765230623824,0.0352781,91309.0,91304.0,0.22999996]
[1765230624042,0.03516,91306.0,91305.0,0.323]
[1765230624595,0.05767759,91306.0,91305.0,0.34635488]
[1765230624727,0.05767759,91306.0,91305.0,0.37925068]
[1765230625097,0.00038759,91306.0,91305.0,0.38086355]
[1765230625524,0.00038759,91306.0,91305.0,2.38086355]
[1765230626320,0.0002,91310.0,91309.0,2.54203645]
[1765230626517,0.0002,91310.0,91309.0,2.58446381]
[1765230626518,1e-08,91310.0,91309.0,2.58446381]
[1765230626716,4e-05,91328.0,91319.0,2.23120847]
[1765230626857,4e-05,91328.0,91327.0,0.54199328]
[1765230627065,4e-05,91328.0,91327.0,1.56880003]
[1765230627288,0.02834451,91370.0,91327.0,1.56880003]
[1765230627289,0.00438407,91388.0,91345.0,0.32841441]
[1765230627497,0.01651,91412.0,91345.0,0.32841441]
[1765230627500,0.01651,91402.0,91394.0,0.01094163]
[1765230627703,0.02213,91395.0,91394.0,0.55438624]
[1765230627902,0.02213,91395.0,91394.0,0.57182624]
[1765230628102,0.01651,91402.0,91396.0,0.54182795]
[1765230628357,0.01651,91412.0,91396.0,0.54344082]
[1765230628480,0.01651,91412.0,91396.0,0.54350043]
[1765230628911,0.0352781,91411.0,91396.0,0.54350043]
[1765230629112,0.0109402,91406.0,91396.0,0.54350043]
[1765230629517,0.01094032,91405.0,91396.0,0.54350043]
[1765230629964,0.01094055,91403.0,91396.0,0.54450043]
[1765230630178,0.01094044,91404.0,91396.0,0.54450043]
[1765230630376,0.00498616,91397.0,91396.0,0.32567248]
[1765230631101,0.00498616,91397.0,91396.0,0.32667248]
[1765230631249,0.00498616,91397.0,91396.0,0.32467248]
[1765230632528,0.00498616,91397.0,91396.0,0.32667248]
[1765230632996,0.00498616,91397.0,91396.0,0.32967248]
[1765230633314,0.00498616,91397.0,91396.0,0.39219547]
[1765230634306,0.00498616,91397.0,91396.0,0.40959547]
[1765230634825,0.02711616,91397.0,91396.0,0.39219547]
[1765230635036,0.02711616,91397.0,91396.0,0.40959547]
[1765230635245,0.24594172,91397.0,91396.0,0.39219547]
[1765230635439,0.02711616,91397.0,91396.0,0.40959547]
[1765230635640,0.02711616,91397.0,91396.0,0.40759547]
[1765230635797,0.02711616,91397.0,91396.0,0.40459547]
[1765230635998,0.02711616,91397.0,91396.0,0.06619547]
[1765230635999,0.28110172,91397.0,91396.0,0.06619547]
[1765230636239,0.28110172,91397.0,91396.0,0.0645826]
[1765230636444,0.06227616,91397.0,91396.0,0.0645826]
[1765230636755,0.28110172,91397.0,91396.0,0.0645826]
[1765230636957,0.06227616,91397.0,91396.0,0.0645826]
[1765230637329,0.02711616,91397.0,91396.0,0.0645826]
[1765230639785,0.06227616,91397.0,91396.0,0.0645826]
[1765230646099,0.06227616,91397.0,91396.0,0.09744128]
[1765230646371,0.06227616,91397.0,91396.0,0.12029988]
[1765230646605,0.02711616,91397.0,91396.0,0.12029988]
[1765230648242,0.02711616,91397.0,91396.0,0.14927856]
[1765230648729,0.06108616,91397.0,91396.0,0.14927856]
[1765230649142,0.02711616,91397.0,91396.0,0.14927856]
[1765230649298,0.06108616,91397.0,91396.0,0.12029988]
[1765230649508,0.13919443,91397.0,91396.0,0.02491821]
[1765230649668,0.06108616,91397.0,91396.0,0.02491821]
[1765230650961,0.06108616,91397.0,91396.0,0.02291821]
[1765230651332,0.06208616,91397.0,91396.0,0.02291821]
[1765230652156,0.21882335,91398.0,91396.0,0.02291821]
[1765230652157,0.18832208,91398.0,91396.0,0.02291821]
[1765230652358,0.18832208,91398.0,91397.0,0.0228586]
[1765230652758,0.20997208,91398.0,91397.0,0.0228586]
[1765230652966,0.24394208,91398.0,91397.0,0.0228586]
[1765230653170,0.15526834,91398.0,91397.0,0.0228586]
[1765230654195,0.16546274,91398.0,91397.0,0.10033564]
[1765230654780,0.16546274,91398.0,91397.0,0.0228586]
[1765230655140,0.16546274,91398.0,91397.0,0.0238586]
[1765230655319,0.2660538,91398.0,91397.0,0.0238586]
[1765230658513,0.34453993,91398.0,91397.0,0.0238586]
[1765230658928,0.2660538,91398.0,91397.0,0.0238586]
[1765230659824,0.2670538,91398.0,91397.0,0.0238586]
[1765230660053,0.2670538,91398.0,91397.0,0.0228586]
[1765230660264,0.2680538,91398.0,91397.0,0.0228586]
[1765230665919,0.26811083,91398.0,91397.0,0.0228586]
[1765230666981,0.34680266,91398.0,91397.0,0.0228586]
[1765230667388,0.34680266,91398.0,91397.0,0.015742]
[1765230670037,0.26811083,91398.0,91397.0,0.015742]
[1765230670800,0.01094247,91387.0,91384.0,0.05848455]
[1765230671025,0.04976,91385.0,91384.0,6.805e-05]
[1765230671189,0.06001143,91385.0,91384.0,6.805e-05]
[1765230671390,0.10006143,91385.0,91384.0,6.805e-05]
[1765230671592,0.15995011,91385.0,91384.0,6.805e-05]
[1765230672441,0.16195011,91385.0,91384.0,6.805e-05]
[1765230673208,0.10306143,91385.0,91384.0,6.805e-05]
[1765230674124,0.10106143,91385.0,91384.0,6.805e-05]
[1765230674356,0.10206143,91385.0,91384.0,6.805e-05]
[1765230674608,0.21888303,91373.0,91371.0,0.05848455]
[1765230674843,0.21888303,91373.0,91360.0,0.00099999]
[1765230674844,0.21891178,91361.0,91360.0,0.00099999]
[1765230675065,0.21891178,91361.0,91348.0,0.33394714]
[1765230675066,0.22988481,91351.0,91349.0,0.06252299]
[1765230675317,0.04784,91350.0,91349.0,0.06259107]
[1765230675570,0.09109,91350.0,91349.0,0.06420394]
[1765230675759,0.04784,91350.0,91349.0,0.38720394]
[1765230676228,0.04784,91350.0,91349.0,0.60614448]
[1765230676700,0.04784,91350.0,91349.0,0.60914448]
[1765230677011,0.04784,91350.0,91349.0,0.39020394]
[1765230677418,0.09109,91350.0,91349.0,0.39720394]
[1765230678232,0.09109,91350.0,91349.0,0.33306808]
[1765230679154,0.09109,91350.0,91349.0,0.33006808]
[1765230679349,0.09109,91350.0,91349.0,0.33306808]
[1765230679767,0.09109,91350.0,91349.0,0.32606808]
[1765230680197,0.36839627,91350.0,91349.0,0.00906808]
[1765230680406,0.22992784,91333.0,91330.0,0.00099999]
[1765230680744,0.26682369,91331.0,91330.0,7.263e-05]
[1765230681124,0.31007369,91331.0,91330.0,7.263e-05]
[1765230682020,0.31007369,91331.0,91330.0,0.00307263]
[1765230682193,0.31007369,91331.0,91330.0,0.00407263]
[1765230683007,0.31007369,91331.0,91330.0,0.00107263]
[1765230683375,0.39195415,91331.0,91330.0,0.00307263]
[1765230683905,0.39195415,91331.0,91330.0,0.00207263]
[1765230684123,0.39195415,91331.0,91330.0,7.263e-05]
[1765230684505,0.39495415,91331.0,91330.0,7.263e-05]
[1765230685327,0.39395415,91331.0,91330.0,7.263e-05]
[1765230685838,0.39595415,91331.0,91330.0,7.263e-05]
[1765230686021,0.39395415,91331.0,91330.0,7.263e-05]
[1765230686451,0.39795415,91331.0,91330.0,0.00057113]
[1765230687036,0.39595415,91331.0,91330.0,0.00057113]
[1765230687420,0.39695415,91331.0,91330.0,0.00057113]
[1765230690394,0.31507369,91331.0,91330.0,0.00057113]
[1765230691406,0.05284,91331.0,91330.0,0.002184]
[1765230691610,0.005,91331.0,91330.0,0.002184]
[1765230692162,0.001,91331.0,91330.0,0.002184]
[1765230692361,0.001,91331.0,91330.0,0.54417009]
[1765230692628,0.002,91331.0,91330.0,0.54417009]
[1765230692841,0.001,91331.0,91330.0,0.54417009]
[1765230693064,0.001,91331.0,91330.0,0.54517009]
[1765230693202,0.001,91331.0,91330.0,0.326184]
[1765230693758,0.01094894,91333.0,91331.0,0.323]
[1765230693969,0.01094894,91333.0,91331.0,0.32461287]
[1765230694164,0.02727,91332.0,91331.0,0.32461287]
[1765230694466,0.02727,91332.0,91331.0,0.54359656]
[1765230694693,0.07052,91332.0,91331.0,0.00161287]
[1765230694904,0.07052,91332.0,91331.0,0.00208204]
[1765230695034,0.07052,91332.0,91331.0,0.00408204]
[1765230695240,0.02057,91339.0,91336.0,0.323]
[1765230695447,0.03151822,91339.0,91336.0,0.32461287]
[1765230695649,0.02727,91337.0,91336.0,0.32461287]
[1765230696204,0.07052,91337.0,91336.0,0.32461287]
[1765230696423,0.07052,91337.0,91336.0,0.00161287]
[1765230696574,0.07052,91337.0,91336.0,0.00361287]
[1765230697027,0.07052,91337.0,91336.0,0.00161287]
[1765230697353,0.07052,91337.0,91336.0,0.00361287]
[1765230697557,0.07052,91337.0,91336.0,0.00461287]
[1765230698789,0.07052,91337.0,91336.0,0.003]
[1765230699994,0.01094894,91333.0,91330.0,7.263e-05]
[1765230700218,0.21905325,91302.0,91299.0,0.01736]
[1765230700429,0.21905325,91302.0,91301.0,0.03838057]
[1765230700430,0.04784,91302.0,91301.0,0.03838057]
[1765230700833,0.04784,91302.0,91301.0,0.05574057]
[1765230701038,0.04784,91302.0,91301.0,0.38008987]
[1765230701746,0.04784,91302.0,91301.0,0.38408987]
[1765230701954,0.04784,91302.0,91301.0,0.36672987]
[1765230702175,0.04784,91302.0,91301.0,0.38408987]
[1765230702785,0.04784,91302.0,91301.0,0.38608987]
[1765230703766,0.04784,91302.0,91301.0,0.60514552]
[1765230705674,0.02057,91302.0,91301.0,0.60675839]
[1765230705847,0.21902726,91313.0,91301.0,0.60675839]
[1765230705848,0.02055,91310.0,91309.0,0.01095182]
[1765230706066,0.02055,91318.0,91315.0,0.0109511]
[1765230706294,0.02055,91318.0,91317.0,0.33395086]
[1765230706700,0.02055,91318.0,91317.0,0.323]
[1765230706828,0.04756,91318.0,91317.0,0.323]
[1765230707319,0.04756,91318.0,91315.0,0.0109511]
[1765230707320,0.04756,91318.0,91315.0,0.3339511]
[1765230707529,0.02701,91316.0,91315.0,0.323]
[1765230707881,0.06732,91316.0,91315.0,0.323]
[1765230708310,0.06732,91316.0,91313.0,0.22997636]
[1765230708311,0.02701,91316.0,91314.0,0.323]
[1765230708782,0.02701,91316.0,91315.0,0.21902206]
[1765230708994,0.02055,91325.0,91322.0,0.01095026]
[1765230709417,0.02055,91325.0,91322.0,0.33395026]
[1765230710842,0.02055,91325.0,91322.0,0.33495026]
[1765230711225,0.2504987,91325.0,91322.0,0.324]
[1765230711427,0.2504987,91325.0,91322.0,0.001]
[1765230711428,0.02701,91323.0,91322.0,0.001]
[1765230712377,0.02701,91323.0,91322.0,0.54200527]
[1765230712602,0.02701,91323.0,91322.0,0.54300527]
[1765230713408,0.02701,91323.0,91322.0,0.324]
[1765230714107,0.0314999,91325.0,91322.0,0.324]
[1765230714108,0.02055,91325.0,91323.0,0.54200287]
[1765230714428,0.02055,91325.0,91323.0,0.323]
[1765230715187,0.02055,91325.0,91322.0,0.55456653]
[1765230715367,0.02055,91325.0,91323.0,0.001]
[1765230716129,0.02055,91325.0,91322.0,0.55456653]
[1765230716487,0.02055,91325.0,91322.0,0.55556653]
[1765230716867,0.02055,91325.0,91324.0,0.21967495]
[1765230717038,0.01094954,91328.0,91325.0,0.0109499]
[1765230717355,0.2299422,91328.0,91325.0,0.00161287]
[1765230717518,0.01094954,91328.0,91325.0,0.01256277]
[1765230718521,0.02701,91326.0,91325.0,0.00161287]
[1765230719393,0.06732,91326.0,91325.0,0.00161287]
[1765230720806,0.21900767,91321.0,91319.0,0.03891166]
[1765230720963,0.21900393,91323.0,91320.0,0.05665551]
[1765230721162,0.21900393,91323.0,91320.0,0.05565552]
[1765230721387,0.02055,91321.0,91320.0,0.05565552]
[1765230721633,0.23955767,91321.0,91320.0,0.05565552]
[1765230721986,0.26656767,91321.0,91320.0,0.05565552]
[1765230722570,0.26656767,91321.0,91320.0,0.05665552]
[1765230722776,0.30687767,91321.0,91320.0,0.05765552]
[1765230722974,0.40146537,91321.0,91320.0,0.00279181]
[1765230723230,0.30687767,91321.0,91320.0,0.00279181]
[1765230724793,0.30687767,91321.0,91320.0,0.00079181]
[1765230725110,0.30887767,91321.0,91320.0,0.00079181]
[1765230731670,0.30887767,91321.0,91307.0,0.03891166]
[1765230731671,0.0109517,91310.0,91307.0,0.03891166]
[1765230731903,0.02529,91308.0,91307.0,0.03891166]
[1765230732432,0.02529,91308.0,91307.0,0.58095291]
[1765230732774,0.01095146,91312.0,91309.0,0.01095182]
[1765230733127,0.03674,91311.0,91309.0,0.01095182]
[1765230733333,0.04475,91310.0,91309.0,0.01095182]
[1765230733537,0.21902607,91314.0,91309.0,0.01095182]
[1765230733538,0.01846,91317.0,91314.0,0.01095122]
[1765230733685,0.01095038,91321.0,91317.0,0.323]
[1765230733890,0.01095014,91323.0,91319.0,0.323]
[1765230734222,0.01095026,91322.0,91319.0,0.37462986]
[1765230734722,0.02629,91320.0,91319.0,0.36367924]
[1765230734882,0.24530007,91320.0,91319.0,0.00161287]
[1765230735084,0.24530007,91320.0,91319.0,0.04068516]
[1765230735273,0.02629,91320.0,91319.0,0.04068516]
[1765230735468,0.02629,91320.0,91319.0,0.04168516]
[1765230735696,0.02629,91320.0,91319.0,0.00261287]
[1765230735898,0.02629,91320.0,91319.0,0.32461287]
[1765230736807,0.02629,91320.0,91319.0,0.32561287]
[1765230737001,0.02629,91320.0,91319.0,0.00261287]
[1765230737194,0.06303,91320.0,91319.0,0.04168384]
[1765230738226,0.06303,91320.0,91319.0,0.00261287]
[1765230738959,0.02629,91320.0,91319.0,0.04168384]
[1765230739181,0.02629,91320.0,91319.0,0.58369631]
[1765230739813,0.02629,91320.0,91319.0,0.36468384]
[1765230740038,0.06303,91320.0,91319.0,0.36468384]
[1765230740244,0.02629,91320.0,91319.0,0.32561287]
[1765230740651,0.02629,91320.0,91319.0,0.36468442]
[1765230740908,0.28514557,91326.0,91321.0,0.01095038]
[1765230741111,0.01095002,91324.0,91320.0,0.36207141]
[1765230741545,0.04769002,91324.0,91320.0,0.323]
[1765230741696,0.01095014,91323.0,91320.0,0.323]
[1765230741916,0.04769002,91324.0,91320.0,0.59364274]
[1765230742382,0.03674,91324.0,91321.0,0.01095038]
[1765230742931,0.04769002,91324.0,91321.0,0.01095038]
[1765230743135,0.01095014,91323.0,91320.0,0.05163478]
[1765230743537,0.02629,91321.0,91320.0,0.00161287]
[1765230743939,0.06303,91321.0,91320.0,0.00161287]
[1765230744143,0.28203767,91321.0,91320.0,0.00161287]
[1765230744339,0.06303,91321.0,91320.0,0.00161287]
[1765230744828,0.06303,91321.0,91320.0,0.32461287]
[1765230744829,0.02629,91321.0,91320.0,0.32461287]
[1765230744961,0.02629,91321.0,91320.0,0.32561287]
[1765230745572,0.02629,91321.0,91320.0,0.32461287]
[1765230745770,0.02629,91321.0,91320.0,0.32561287]
[1765230746816,0.02629,91321.0,91320.0,0.32661287]
[1765230747168,0.24529767,91321.0,91320.0,0.32661287]
[1765230749902,0.26375767,91321.0,91320.0,0.32661287]
[1765230750473,0.23746767,91321.0,91320.0,0.32661287]
[1765230750683,0.24840723,91326.0,91320.0,0.32661287]
[1765230750684,0.01846,91351.0,91337.0,0.01094846]
[1765230750904,0.01094654,91353.0,91349.0,0.01094702]
[1765230751064,0.01846,91356.0,91352.0,0.2298798]
[1765230751680,0.01846,91356.0,91352.0,0.01094666]
[1765230751881,0.21892856,91354.0,91352.0,8.505e-05]
[1765230752115,0.02629,91353.0,91352.0,8.505e-05]
[1765230752319,0.06303,91353.0,91352.0,8.505e-05]
[1765230753529,0.06303,91353.0,91352.0,0.00208505]
[1765230754007,0.06303,91353.0,91352.0,0.00108505]
[1765230754419,0.06303,91353.0,91352.0,0.01844505]
[1765230754618,0.02629,91353.0,91352.0,0.2383784]
[1765230754841,0.01846,91356.0,91353.0,0.01094654]
[1765230755194,0.01846,91356.0,91352.0,0.00369792]
[1765230755195,0.02629,91353.0,91352.0,0.00369792]
[1765230755381,0.02629,91353.0,91352.0,0.02105792]
[1765230755590,0.06303,91353.0,91352.0,0.02105792]
[1765230755786,0.06303,91353.0,91352.0,0.02005792]
[1765230756599,0.14308092,91353.0,91352.0,8.505e-05]
[1765230756826,0.14308092,91353.0,91339.0,0.03904684]
[1765230756827,0.21895972,91341.0,91339.0,0.03904684]
[1765230756982,0.21898609,91330.0,91327.0,0.03904684]
[1765230757235,0.22993539,91330.0,91328.0,0.05024393]
[1765230757456,0.03674,91329.0,91328.0,0.01736]
[1765230757656,0.28201849,91329.0,91328.0,0.01736]
[1765230757856,0.30047849,91329.0,91328.0,0.01736]
[1765230759705,0.30147849,91329.0,91328.0,0.01736]
[1765230765110,0.30147849,91329.0,91327.0,0.0001027]
[1765230765262,0.23844849,91329.0,91328.0,0.01732]
[1765230765676,0.26392849,91329.0,91328.0,0.01732]
[1765230765850,0.30331849,91329.0,91328.0,0.01732]
[1765230766052,0.30231849,91329.0,91328.0,0.01732]
[1765230766764,0.30331849,91329.0,91328.0,0.01732]
[1765230768080,0.30231849,91329.0,91328.0,0.01732]
[1765230768454,0.30231849,91329.0,91328.0,0.01832]
[1765230768864,0.30231849,91329.0,91328.0,0.02032]
[1765230769072,0.30231849,91329.0,91328.0,0.003]
[1765230769219,0.30231849,91329.0,91328.0,0.02032]
[1765230774484,0.30231849,91329.0,91328.0,0.003]
[1765230778883,0.30231849,91329.0,91328.0,0.00307943]
[1765230788053,0.01846,91329.0,91328.0,0.22207031]
[1765230788259,0.01846,91336.0,91333.0,0.01094894]
[1765230788467,0.02880798,91341.0,91337.0,0.01094846]
[1765230788671,0.02880798,91341.0,91338.0,0.01732]
[1765230788877,0.01786,91341.0,91340.0,0.5810459]
[1765230789078,0.21893082,91354.0,91346.0,0.21894773]
[1765230789079,0.01786,91349.0,91346.0,0.21894773]
[1765230789227,0.02880702,91349.0,91345.0,0.323]
[1765230789440,0.02484,91346.0,91345.0,0.323]
[1765230789614,0.02484,91346.0,91345.0,0.34032]
[1765230789976,0.06032,91346.0,91345.0,0.34032]
[1765230790352,0.06032,91346.0,91345.0,0.01732]
[1765230791126,0.21895013,91345.0,91344.0,0.323]
[1765230791354,0.27927013,91345.0,91344.0,0.01732]
[1765230792571,0.38212512,91345.0,91343.0,0.05]
[1765230792714,0.21895732,91342.0,91341.0,0.01732]
[1765230793129,0.27835732,91342.0,91341.0,0.01732]
[1765230793985,0.27935732,91342.0,91341.0,0.01732]
[1765230794189,0.22993088,91332.0,91329.0,0.03907469]
[1765230794413,0.02377,91330.0,91329.0,0.03907469]
[1765230794643,0.02377,91330.0,91329.0,0.01732]
[1765230794870,0.0594,91330.0,91329.0,0.01732]
[1765230795092,0.27838609,91330.0,91329.0,0.01732]
[1765230795293,0.27838609,91330.0,91329.0,0.001]
[1765230795494,0.27838609,91330.0,91329.0,0.01832]
[1765230795718,0.27838609,91330.0,91329.0,0.01732]
[1765230796296,0.28933539,91330.0,91327.0,0.0001027]
[1765230796727,0.28933539,91330.0,91328.0,0.01732]
[1765230797134,0.02377,91329.0,91328.0,0.01732]
[1765230797760,0.0594,91329.0,91328.0,0.01732]
[1765230798123,0.02377,91329.0,91328.0,0.01832]
[1765230798333,0.01094894,91333.0,91330.0,0.0109493]
[1765230798551,0.01094894,91333.0,91331.0,0.03904008]
[1765230798758,0.04657894,91333.0,91331.0,0.03904008]
[1765230798967,0.02377,91332.0,91331.0,0.03904008]
[1765230799171,0.0594,91332.0,91331.0,0.05636008]
[1765230800731,0.0594,91332.0,91331.0,0.05836008]
[1765230801428,0.0594,91332.0,91331.0,0.06036008]
[1765230801976,0.02377,91332.0,91331.0,0.06036008]
[1765230802187,0.01094846,91337.0,91332.0,0.01094906]
[1765230802380,0.01094846,91337.0,91332.0,0.04999686]
[1765230802614,0.04657858,91336.0,91332.0,0.04999686]
[1765230802832,0.0109487,91335.0,91332.0,0.0390478]
[1765230803160,0.02377,91333.0,91332.0,0.0390478]
[1765230803708,0.02377,91333.0,91332.0,0.0410478]
[1765230803908,0.22991777,91337.0,91334.0,0.01094882]
[1765230804135,0.22991777,91337.0,91333.0,0.01094894]
[1765230804359,0.0109475,91345.0,91336.0,0.03829552]
[1765230804524,0.0109475,91345.0,91339.0,0.01094822]
[1765230804525,0.01094762,91344.0,91339.0,0.01094822]
[1765230804739,0.0109475,91345.0,91340.0,0.0109481]
[1765230804944,0.0109475,91345.0,91341.0,0.01732]
[1765230805149,0.24774974,91349.0,91341.0,0.01893287]
[1765230805360,0.43773772,91379.0,91341.0,0.01893287]
[1765230805361,0.01094523,91364.0,91358.0,0.01094594]
[1765230805611,0.22985319,91363.0,91359.0,0.02826582]
[1765230805816,0.01734,91363.0,91360.0,0.3339457]
[1765230806494,0.01734,91363.0,91360.0,0.3340484]
[1765230806838,0.01734,91363.0,91362.0,0.03829552]
[1765230807053,0.01834,91363.0,91362.0,0.36129552]
[1765230808377,0.01834,91363.0,91362.0,0.36229552]
[1765230808579,0.01734,91363.0,91362.0,0.36390839]
[1765230808984,0.24717339,91371.0,91364.0,0.01094523]
[1765230809180,0.01094499,91366.0,91362.0,0.36390839]
[1765230809826,0.01094499,91366.0,91362.0,0.36290839]
[1765230810160,0.01094511,91365.0,91364.0,0.001]
[1765230810622,0.001,91366.0,91364.0,0.32461287]
[1765230810915,0.2426722,91365.0,91364.0,0.32461287]
[1765230811115,0.2783022,91365.0,91364.0,0.32461287]
[1765230811278,0.0594,91365.0,91364.0,0.32461287]
[1765230811865,0.0594,91365.0,91364.0,0.00161287]
[1765230812450,0.0594,91365.0,91362.0,0.323]
[1765230812451,0.2189046,91364.0,91362.0,0.323]
[1765230812697,0.02377,91363.0,91362.0,0.323]
[1765230812900,0.21890939,91362.0,91360.0,0.0001027]
[1765230813037,0.02377,91361.0,91360.0,0.0001027]
[1765230813443,0.02377,91361.0,91360.0,0.0174227]
[1765230813875,0.0594,91361.0,91360.0,0.0174227]
[1765230814231,0.0594,91361.0,91360.0,0.0194227]
[1765230814852,0.0594,91361.0,91360.0,0.0204227]
[1765230815272,0.02377,91361.0,91360.0,0.0194227]
[1765230815482,0.01094534,91363.0,91360.0,0.0204227]
[1765230815726,0.28281243,91367.0,91360.0,0.0313684]
[1765230815888,0.22984793,91365.0,91360.0,0.0313684]
[1765230816248,0.22984793,91365.0,91360.0,0.0283684]
[1765230816452,0.22985415,91363.0,91360.0,0.0184227]
[1765230816692,0.01094534,91363.0,91360.0,0.0204227]
[1765230816899,0.22081622,91370.0,91366.0,0.01094499]
[1765230816900,0.00192577,91370.0,91366.0,0.01094499]
[1765230817096,0.01094475,91368.0,91366.0,0.03829552]
[1765230817746,0.01094475,91368.0,91362.0,0.23154483]
[1765230817747,0.01094499,91366.0,91362.0,0.0016923]
[1765230818101,0.01094499,91366.0,91365.0,0.03829552]
[1765230818102,0.03471499,91366.0,91365.0,0.03829552]
[1765230818951,0.03471499,91366.0,91362.0,0.3246923]
[1765230818952,0.22984731,91365.0,91362.0,0.3246923]
[1765230819159,0.02377,91363.0,91362.0,0.0016923]
[1765230819760,0.24267699,91363.0,91362.0,0.0016923]
[1765230819939,0.27830699,91363.0,91362.0,0.0016923]
[1765230820519,0.02377,91363.0,91362.0,0.0016923]
[1765230820772,0.02377,91363.0,91362.0,0.0210123]
[1765230821130,0.22984731,91365.0,91362.0,0.0220123]
[1765230821322,0.01734,91367.0,91364.0,0.33394523]
[1765230821523,0.02828487,91367.0,91364.0,0.323]
[1765230822157,0.2188998,91366.0,91364.0,0.323]
[1765230822373,0.02828487,91367.0,91365.0,0.03829552]
[1765230822750,0.00192577,91370.0,91367.0,0.01094487]
[1765230823043,0.00192577,91370.0,91369.0,0.60441561]
[1765230823286,0.00192577,91370.0,91369.0,0.60602848]
[1765230823493,0.00192577,91370.0,91369.0,1.30640148]
[1765230823839,0.00192577,91370.0,91369.0,1.12772048]
[1765230824610,0.00192577,91370.0,91369.0,1.13072048]
[1765230825754,0.00192577,91370.0,91369.0,1.13172048]
[1765230828705,0.00192577,91370.0,91369.0,0.62734848]
[1765230828853,0.00192577,91370.0,91369.0,0.78995248]
[1765230829055,0.00192577,91370.0,91369.0,0.80727248]
[1765230829555,0.00192577,91370.0,91369.0,0.84820971]
[1765230829750,0.00192577,91370.0,91369.0,0.86552971]
[1765230830004,0.00192577,91370.0,91369.0,0.84820971]
[1765230830239,0.00192577,91370.0,91369.0,0.86552971]
[1765230831362,0.00192577,91370.0,91369.0,0.80727248]
[1765230831891,0.00192577,91370.0,91369.0,0.86554493]
[1765230832467,0.00192577,91370.0,91369.0,0.80727248]
[1765230834689,0.0018465,91370.0,91369.0,0.80727248]
[1765230836468,0.0018465,91370.0,91369.0,0.62734848]
[1765230836700,0.0018465,91370.0,91369.0,0.46456648]
[1765230836899,0.0018465,91370.0,91369.0,0.62734848]
[1765230837153,0.0260365,91370.0,91369.0,0.24182549]
[1765230837309,0.0607065,91370.0,91369.0,0.32250848]
[1765230837525,0.0260365,91370.0,91369.0,0.14251639]
[1765230837882,0.0260365,91370.0,91369.0,0.0799934]
[1765230838070,0.0018465,91370.0,91369.0,0.14151639]
[1765230838426,0.0018465,91370.0,91369.0,0.10261586]
[1765230838909,0.0018465,91370.0,91369.0,0.09961586]
[1765230839316,0.0018465,91370.0,91369.0,0.10061586]
[1765230839467,0.0018465,91370.0,91369.0,0.13951639]
[1765230840683,0.0018465,91370.0,91369.0,0.10061586]
[1765230843368,0.0234465,91370.0,91369.0,0.10061586]
[1765230844099,0.0589765,91370.0,91369.0,0.01916]
[1765230844416,0.0589765,91370.0,91369.0,0.01832]
[1765230844817,0.0589765,91370.0,91369.0,0.001]
[1765230845019,0.0589765,91370.0,91369.0,0.01832]
[1765230845446,0.0589765,91370.0,91369.0,0.01732]
[1765230845624,0.0589765,91370.0,91369.0,0.01832]
[1765230845852,0.0018465,91370.0,91369.0,0.23721262]
[1765230846054,0.0018465,91370.0,91369.0,0.01832]
[1765230846348,0.0589765,91370.0,91369.0,0.001]
[1765230846546,0.0589765,91370.0,91369.0,0.01832]
[1765230851635,0.0234465,91370.0,91369.0,0.01832]
[1765230851967,0.0589765,91370.0,91369.0,0.01832]
[1765230853345,0.0589765,91370.0,91369.0,0.01845455]
[1765230854195,0.0589765,91370.0,91369.0,0.00113455]
[1765230854398,0.0589765,91370.0,91369.0,0.01845455]
[1765230855016,0.0754865,91370.0,91369.0,0.01845455]
[1765230856850,0.0754865,91370.0,91369.0,0.00113455]
[1765230857577,0.15583607,91370.0,91369.0,0.00113455]
[1765230857973,0.15583607,91370.0,91369.0,0.00013455]
[1765230858226,0.0754865,91370.0,91369.0,0.00013455]
[1765230859060,0.0754865,91370.0,91369.0,0.00113455]
[1765230864724,0.0754865,91370.0,91369.0,0.001]
[1765230865476,0.0754865,91370.0,91369.0,0.00094]
[1765230869671,0.0018465,91370.0,91369.0,0.28396848]
[1765230869879,0.0018465,91370.0,91369.0,0.60696848]
[1765230870091,0.0018465,91370.0,91369.0,0.62428848]
[1765230870922,0.0018465,91370.0,91369.0,0.68168848]
[1765230871348,0.0018465,91370.0,91369.0,0.62434848]
[1765230872578,0.0018465,91370.0,91369.0,0.76071248]
[1765230873953,0.0018465,91370.0,91369.0,0.75971248]
[1765230874168,0.0018465,91370.0,91369.0,0.76571248]
[1765230874385,0.0018465,91370.0,91369.0,0.78303248]
[1765230877786,0.0018465,91370.0,91369.0,0.41045586]
[1765230877938,0.0587765,91370.0,91369.0,0.02332]
[1765230878186,0.0587765,91370.0,91369.0,0.006]
[1765230878621,0.0587765,91370.0,91369.0,0.02132]
[1765230879901,0.0587765,91370.0,91369.0,0.01732]
[1765230880121,0.0587765,91370.0,91369.0,0.01832]
[1765230880340,0.0587765,91370.0,91369.0,0.02032]
[1765230880696,0.0587765,91370.0,91369.0,0.01732]
[1765230880868,0.0597765,91370.0,91369.0,0.01732]
[1765230881109,0.0259565,91370.0,91369.0,0.55921262]